bitfinex/quotes_BTCUSD_20240715
["timestamp","ask_amount","ask_price","bid_price","bid_amount"]
[1721032413425,0.415174,63099.0,63098.0,0.00561182]
[1721032413582,0.46593196,63099.0,63098.0,0.00163233]
[1721032413780,0.54903196,63099.0,63098.0,0.00163233]
[1721032414128,1.32195769,63099.0,63098.0,0.00163233]
[1721032414336,2.01430119,63099.0,63098.0,0.00163233]
[1721032414533,1.72903519,63099.0,63098.0,0.00163233]
[1721032414741,1.72771499,63099.0,63098.0,0.00163233]
[1721032415195,1.72771499,63099.0,63092.0,0.009163]
[1721032415196,0.1473,63094.0,63092.0,0.009163]
[1721032415416,0.34613195,63093.0,63092.0,0.009163]
[1721032416424,0.34613195,63093.0,63092.0,0.00844844]
[1721032416854,0.34613195,63093.0,63092.0,0.00447023]
[1721032417166,0.34919548,63093.0,63092.0,0.00077749]
[1721032417318,0.29832458,63093.0,63090.0,0.02192924]
[1721032417530,0.13314314,63092.0,63090.0,0.02192924]
[1721032417696,0.16518144,63091.0,63090.0,0.02192924]
[1721032417898,0.29826357,63091.0,63090.0,0.02192924]
[1721032418323,0.29826357,63091.0,63090.0,0.01826074]
[1721032418324,0.29520004,63091.0,63090.0,0.01826074]
[1721032418549,0.2951999,63091.0,63085.0,0.00548254]
[1721032418754,0.05681049,63090.0,63085.0,0.00548254]
[1721032418927,0.05374696,63089.0,63085.0,0.00548254]
[1721032419229,0.00306353,63088.0,63085.0,0.00548254]
[1721032419425,0.00306353,63086.0,63085.0,0.00512526]
[1721032419599,0.05681049,63086.0,63085.0,0.0014976]
[1721032419799,0.05374696,63086.0,63085.0,0.0014976]
[1721032420441,0.08741872,63086.0,63085.0,0.0014976]
[1721032421235,0.08744798,63086.0,63085.0,0.0064976]
[1721032422253,0.08844798,63086.0,63085.0,0.0094976]
[1721032422423,0.08844798,63086.0,63085.0,0.00878304]
[1721032422624,0.08844798,63086.0,63085.0,0.00478314]
[1721032424487,0.001,63086.0,63085.0,0.00478314]
[1721032424657,0.03465876,63086.0,63085.0,0.00478314]
[1721032424861,0.0883061,63086.0,63085.0,0.00478314]
[1721032425356,0.0883061,63086.0,63085.0,0.00406858]
[1721032425585,0.0883061,63086.0,63085.0,7.379e-05]
[1721032426203,0.1676061,63086.0,63081.0,0.02134188]
[1721032426421,0.12,63082.0,63081.0,0.02134188]
[1721032426624,0.0872395,63082.0,63081.0,0.02134188]
[1721032426829,0.16659994,63082.0,63081.0,0.01298296]
[1721032427322,0.0872395,63082.0,63081.0,0.01298296]
[1721032427536,0.0872395,63082.0,63081.0,0.01798296]
[1721032427740,0.00306353,63084.0,63081.0,0.01798296]
[1721032427939,0.08845207,63083.0,63081.0,0.01298296]
[1721032428142,0.0915156,63082.0,63081.0,0.01798296]
[1721032428351,0.2115156,63082.0,63081.0,0.01762603]
[1721032428710,0.35215207,63082.0,63081.0,0.01762603]
[1721032428943,0.35215207,63082.0,63081.0,0.01262603]
[1721032430058,0.12,63081.0,63076.0,0.009174]
[1721032430260,0.08845207,63080.0,63076.0,0.009174]
[1721032430497,0.08845207,63079.0,63076.0,0.009174]
[1721032430687,0.08845207,63078.0,63076.0,0.009174]
[1721032430859,0.0337954,63077.0,63076.0,0.005212]
[1721032431062,0.00306353,63081.0,63076.0,0.005212]
[1721032431263,0.08868011,63080.0,63076.0,0.00485507]
[1721032431465,0.00306353,63079.0,63076.0,0.00485507]
[1721032431673,0.08868012,63078.0,63076.0,0.00485507]
[1721032431877,0.03382149,63077.0,63076.0,0.00985507]
[1721032432107,0.03382149,63077.0,63076.0,0.00485507]
[1721032433324,0.05576246,63077.0,63076.0,0.00485507]
[1721032433551,0.21264748,63077.0,63076.0,0.00985507]
[1721032433702,0.09264748,63077.0,63076.0,0.00485507]
[1721032433902,0.08958395,63077.0,63076.0,0.00485507]
[1721032434226,0.08958395,63077.0,63076.0,0.00985507]
[1721032434378,0.08958395,63077.0,63076.0,0.00449814]
[1721032434379,0.0900709,63077.0,63076.0,0.00449814]
[1721032434781,0.0900709,63077.0,63076.0,0.00749814]
[1721032435206,0.0890709,63077.0,63076.0,0.00749814]
[1721032436033,0.0890709,63077.0,63076.0,0.07319814]
[1721032437453,0.03384799,63077.0,63076.0,0.07284121]
[1721032437653,0.00306353,63079.0,63076.0,0.07284121]
[1721032437837,0.08890764,63078.0,63076.0,0.07284121]
[1721032438040,0.08890764,63077.0,63076.0,0.07284121]
[1721032438441,0.08890764,63077.0,63076.0,0.06984121]
[1721032439049,0.08890764,63077.0,63076.0,0.00414121]
[1721032440069,0.08890764,63077.0,63076.0,0.00514121]
[1721032440269,0.08890764,63077.0,63076.0,0.00378428]
[1721032440758,0.14395351,63077.0,63076.0,0.00678428]
[1721032442468,0.30607142,63077.0,63076.0,0.00678428]
[1721032442671,1.76044842,63077.0,63076.0,0.006427]
[1721032442877,1.83988154,63077.0,63076.0,0.006427]
[1721032443223,1.7509829,63077.0,63076.0,0.006427]
[1721032443425,1.93109986,63077.0,63076.0,0.003427]
[1721032443825,1.93609884,63077.0,63076.0,0.003427]
[1721032444099,1.8455123,63077.0,63076.0,0.003427]
[1721032444506,1.8505123,63077.0,63076.0,0.003427]
[1721032444880,1.8545123,63077.0,63076.0,0.003427]
[1721032445284,1.8505123,63077.0,63076.0,0.00271244]
[1721032445689,0.262698,63071.0,63063.0,0.09904497]
[1721032445894,0.09259293,63070.0,63063.0,0.09904497]
[1721032446095,0.0895294,63069.0,63063.0,0.09904497]
[1721032446294,0.09259293,63068.0,63063.0,0.09904497]
[1721032446558,0.08956024,63067.0,63062.0,0.2376]
[1721032446691,0.08956024,63066.0,63062.0,0.1449]
[1721032446898,0.03392313,63065.0,63062.0,0.1449]
[1721032447116,0.03698666,63064.0,63062.0,0.1449]
[1721032447321,0.03392313,63063.0,63062.0,0.1458]
[1721032447722,0.0339282,63064.0,63063.0,0.005]
[1721032447927,0.03392821,63064.0,63063.0,0.00428579]
[1721032448218,0.03392821,63065.0,63062.0,0.1458]
[1721032448442,0.03699174,63064.0,63062.0,0.14214682]
[1721032448657,0.03392821,63063.0,63062.0,0.13849364]
[1721032448885,0.03392821,63063.0,63062.0,0.13488639]
[1721032449039,0.03392821,63063.0,63062.0,0.13988639]
[1721032449242,0.03392821,63063.0,63062.0,0.13619875]
[1721032449695,0.03492821,63064.0,63062.0,0.13259023]
[1721032449823,0.03492821,63064.0,63062.0,0.12894981]
[1721032449824,0.03700888,63063.0,63062.0,0.12894981]
[1721032450369,0.03394535,63063.0,63062.0,0.12499039]
[1721032450556,0.03394535,63063.0,63062.0,0.12101091]
[1721032450956,0.03394535,63063.0,63062.0,0.11601091]
[1721032451177,0.03394535,63063.0,63062.0,0.11565424]
[1721032451380,0.03394535,63063.0,63062.0,0.069813]
[1721032451959,0.03394535,63063.0,63062.0,0.005913]
[1721032452190,0.03494535,63063.0,63062.0,0.005913]
[1721032452354,0.09002116,63063.0,63062.0,0.005913]
[1721032452994,0.08993542,63063.0,63062.0,0.005913]
[1721032453302,0.49950489,63063.0,63062.0,0.0057593]
[1721032454213,0.49950489,63063.0,63062.0,0.0007593]
[1721032454589,0.49950489,63063.0,63062.0,0.0027593]
[1721032454811,0.49950489,63063.0,63062.0,0.0007593]
[1721032454948,0.49850489,63063.0,63062.0,0.0007593]
[1721032455148,0.50050489,63063.0,63062.0,0.0007593]
[1721032456177,0.89281933,63063.0,63062.0,0.0007593]
[1721032456372,0.94817823,63063.0,63062.0,0.0007593]
[1721032456573,0.00306353,63060.0,63054.0,0.087274]
[1721032456773,0.08921984,63059.0,63054.0,0.087274]
[1721032456981,0.08921984,63058.0,63054.0,0.087274]
[1721032457215,0.09228337,63057.0,63054.0,0.087274]
[1721032457427,0.09228337,63057.0,63054.0,0.009174]
[1721032457428,0.03385942,63056.0,63054.0,0.009174]
[1721032457633,0.79090786,63055.0,63054.0,0.009174]
[1721032457867,0.79090786,63055.0,63054.0,0.011174]
[1721032457868,0.82476728,63055.0,63054.0,0.011174]
[1721032458073,0.82476728,63055.0,63054.0,0.009174]
[1721032458282,1.23023228,63055.0,63054.0,0.009174]
[1721032458488,1.22716875,63055.0,63054.0,0.014174]
[1721032458960,1.10716875,63055.0,63054.0,0.014174]
[1721032459208,0.75990375,63055.0,63054.0,0.009174]
[1721032459377,0.00306353,63066.0,63054.0,0.299074]
[1721032459505,0.03398662,63065.0,63058.0,0.0605]
[1721032459709,0.03398662,63065.0,63064.0,0.2366]
[1721032459907,0.03705015,63065.0,63064.0,0.2366]
[1721032460106,0.03705015,63065.0,63064.0,0.1439]
[1721032460428,0.03705015,63065.0,63064.0,0.2366]
[1721032460597,0.03398662,63065.0,63064.0,0.2366]
[1721032461152,0.03398662,63070.0,63064.0,0.2366]
[1721032461391,0.004,63065.0,63064.0,0.2366]
[1721032461634,0.03798662,63065.0,63064.0,0.2366]
[1721032462169,0.03398662,63065.0,63064.0,0.2366]
[1721032462417,0.03398662,63065.0,63064.0,0.1449]
[1721032462619,0.03393601,63065.0,63064.0,0.1449]
[1721032462972,0.08990142,63065.0,63064.0,0.001]
[1721032463168,0.09290142,63065.0,63064.0,0.001]
[1721032463785,0.09290142,63065.0,63060.0,0.0615]
[1721032463988,0.08990142,63064.0,63060.0,0.0615]
[1721032464183,0.03393601,63063.0,63060.0,0.0615]
[1721032464389,0.03393601,63062.0,63060.0,0.0615]
[1721032464611,0.007,63065.0,63060.0,0.0615]
[1721032464612,0.03393601,63061.0,63060.0,0.0615]
[1721032464895,0.03393601,63064.0,63060.0,0.0615]
[1721032465097,0.03393601,63063.0,63060.0,0.0615]
[1721032465348,0.03393601,63062.0,63060.0,0.0615]
[1721032465542,0.03393601,63061.0,63060.0,0.0615]
[1721032465756,0.03388177,63061.0,63060.0,0.0615]
[1721032465922,0.03388177,63063.0,63060.0,0.0615]
[1721032466122,0.003,63064.0,63060.0,0.0615]
[1721032466123,0.03388177,63062.0,63060.0,0.0615]
[1721032466327,0.03388177,63061.0,63060.0,0.0615]
[1721032466611,0.03388177,63063.0,63060.0,0.0625]
[1721032466808,0.03369096,63062.0,63060.0,0.0625]
[1721032467059,0.003,63064.0,63060.0,0.0625]
[1721032467060,0.003,63064.0,63063.0,0.06]
[1721032467241,0.00306353,63076.0,63064.0,0.2824]
[1721032467446,0.13510502,63075.0,63065.0,0.0634]
[1721032467685,0.2125602,63077.0,63065.0,0.0634]
[1721032467686,0.13816855,63074.0,63065.0,0.0634]
[1721032467886,0.05564916,63073.0,63065.0,0.0634]
[1721032468099,0.05564916,63073.0,63067.0,0.0634]
[1721032468272,0.00306353,63076.0,63067.0,0.0634]
[1721032468273,0.05564916,63072.0,63067.0,0.0634]
[1721032468473,0.05564916,63071.0,63067.0,0.0634]
[1721032468792,0.05564916,63070.0,63067.0,0.0634]
[1721032468969,0.014,63074.0,63072.0,0.0634]
[1721032469180,0.05536161,63073.0,63072.0,0.0634]
[1721032469595,0.05536034,63073.0,63072.0,0.0634]
[1721032469792,0.05536034,63073.0,63061.0,0.0634]
[1721032469793,0.21747825,63073.0,63061.0,0.0634]
[1721032469997,0.05842387,63072.0,63061.0,0.1634]
[1721032470334,0.05536034,63071.0,63061.0,0.1634]
[1721032470535,0.00306353,63070.0,63067.0,0.001]
[1721032470736,0.05536034,63069.0,63067.0,0.001]
[1721032470945,0.00306353,63068.0,63061.0,0.1634]
[1721032471152,0.05536034,63067.0,63061.0,0.1644]
[1721032471347,0.00306353,63066.0,63061.0,0.1644]
[1721032471553,0.00306353,63066.0,63061.0,0.1634]
[1721032471695,0.00306353,63071.0,63061.0,0.1634]
[1721032471901,0.05934274,63070.0,63061.0,0.1634]
[1721032472101,0.05940627,63069.0,63061.0,0.1634]
[1721032472303,0.05622568,63068.0,63061.0,0.1634]
[1721032472503,0.0828,63067.0,63061.0,0.001]
[1721032472744,0.05928921,63066.0,63061.0,0.001]
[1721032472949,0.05622568,63065.0,63061.0,0.001]
[1721032473171,0.00306353,63064.0,63061.0,0.001]
[1721032473376,0.05622568,63063.0,63061.0,0.001]
[1721032473578,0.00306353,63062.0,63061.0,0.001]
[1721032473992,0.0828,63067.0,63058.0,0.1]
[1721032473993,0.0647,63064.0,63058.0,0.1]
[1721032474193,0.05664023,63063.0,63059.0,1.14772338]
[1721032474509,0.05664023,63063.0,63058.0,0.1]
[1721032474678,0.00306353,63062.0,63061.0,0.003]
[1721032474859,0.05970376,63062.0,63061.0,0.008]
[1721032475055,0.05664023,63062.0,63061.0,0.003]
[1721032475989,0.05664023,63062.0,63058.0,0.1]
[1721032476160,0.00306353,63061.0,63058.0,0.1]
[1721032476356,0.05664023,63060.0,63059.0,0.003]
[1721032476808,0.05664023,63060.0,63058.0,0.1]
[1721032477010,0.0371049,63059.0,63057.0,0.2]
[1721032477224,0.03404137,63058.0,63057.0,0.2]
[1721032477843,0.03404137,63061.0,63057.0,0.2]
[1721032478047,0.09524528,63060.0,63058.0,0.003]
[1721032478278,0.09119656,63059.0,63058.0,0.003]
[1721032478431,0.31391956,63059.0,63058.0,0.003]
[1721032478840,0.25677918,63059.0,63058.0,0.003]
[1721032479045,0.31404708,63059.0,63058.0,0.003]
[1721032479406,0.00306353,63058.0,63054.0,0.009174]
[1721032479575,0.09132408,63057.0,63055.0,1.14772338]
[1721032479811,0.09132408,63056.0,63055.0,1.14772338]
[1721032480340,0.25344199,63056.0,63055.0,1.14772338]
[1721032480564,0.82305934,63056.0,63055.0,1.14772338]
[1721032480773,0.00306353,63055.0,63054.0,0.075474]
[1721032480981,0.09438761,63055.0,63054.0,0.075474]
[1721032481248,0.09438761,63055.0,63054.0,0.072474]
[1721032481431,0.09132408,63055.0,63054.0,0.072474]
[1721032482025,0.09132408,63055.0,63054.0,0.073474]
[1721032482176,0.09200541,63055.0,63054.0,0.073474]
[1721032482375,0.09183877,63055.0,63054.0,0.073474]
[1721032482559,0.09181567,63055.0,63054.0,0.073474]
[1721032483219,0.03411822,63055.0,63054.0,0.073474]
[1721032483360,0.03411822,63065.0,63054.0,0.075474]
[1721032483569,0.17438888,63064.0,63054.0,0.075474]
[1721032483764,0.17132535,63063.0,63054.0,0.075474]
[1721032484123,0.00306353,63064.0,63054.0,0.075474]
[1721032484124,0.17438917,63062.0,63054.0,0.075474]
[1721032484344,0.0918127,63061.0,63054.0,0.075474]
[1721032484498,0.09487623,63060.0,63054.0,0.073474]
[1721032484702,0.1461,63058.0,63054.0,0.009174]
[1721032484912,0.142732,63055.0,63054.0,0.009174]
[1721032485273,0.03411822,63055.0,63054.0,0.010174]
[1721032485447,0.03416285,63058.0,63054.0,0.009174]
[1721032485624,0.09179389,63057.0,63054.0,0.009174]
[1721032485804,0.09179389,63056.0,63054.0,0.010174]
[1721032486035,0.09485742,63055.0,63054.0,0.009174]
[1721032486429,0.09179389,63055.0,63054.0,0.010174]
[1721032486830,0.09179389,63055.0,63054.0,0.009174]
[1721032487717,0.09179389,63055.0,63054.0,0.011174]
[1721032488620,0.09228105,63055.0,63054.0,0.011174]
[1721032488814,0.09228105,63055.0,63054.0,0.012174]
[1721032491925,0.09223228,63055.0,63054.0,0.012174]
[1721032492277,0.14579353,63057.0,63054.0,0.012174]
[1721032492469,0.09223002,63056.0,63054.0,0.012174]
[1721032492708,0.09529355,63055.0,63054.0,0.012174]
[1721032493325,0.09223002,63055.0,63054.0,0.010174]
[1721032493897,0.09529355,63055.0,63054.0,0.010174]
[1721032494373,0.09529355,63055.0,63054.0,0.012174]
[1721032494784,0.23802555,63055.0,63054.0,0.012174]
[1721032494992,0.09529355,63055.0,63054.0,0.012174]
[1721032495198,0.09164261,63055.0,63054.0,0.012174]
[1721032495738,0.09470614,63055.0,63054.0,0.012174]
[1721032496941,0.09164261,63055.0,63054.0,0.012174]
[1721032497403,0.09470614,63055.0,63054.0,0.012174]
[1721032498379,0.09437872,63055.0,63054.0,0.012174]
[1721032498607,0.09434581,63055.0,63054.0,0.012174]
[1721032501187,0.14273,63056.0,63054.0,0.012174]
[1721032501391,0.09435897,63055.0,63054.0,0.012174]
[1721032502124,0.09435897,63055.0,63054.0,0.009174]
[1721032502513,0.09435897,63055.0,63054.0,0.010174]
[1721032503523,0.09435897,63055.0,63054.0,0.012174]
[1721032504262,0.09130938,63055.0,63054.0,0.242074]
[1721032504678,0.09185362,63055.0,63054.0,0.242074]
[1721032505704,0.09185362,63055.0,63054.0,0.704808]
[1721032505919,0.03410416,63055.0,63054.0,0.442074]
[1721032506239,0.03410416,63064.0,63054.0,0.442074]
[1721032506439,0.09189264,63063.0,63057.0,0.07251435]
[1721032506640,0.09189264,63062.0,63057.0,0.07251435]
[1721032506954,0.09189264,63061.0,63057.0,0.07251435]
[1721032507158,0.09189264,63060.0,63057.0,0.07251435]
[1721032507360,0.00083,63065.0,63059.0,0.0928]
[1721032507564,0.17993694,63064.0,63057.0,0.07251435]
[1721032507733,0.09144653,63063.0,63058.0,0.0659]
[1721032507932,0.09144653,63062.0,63059.0,0.0777]
[1721032508171,0.09144653,63061.0,63059.0,0.0777]
[1721032508352,0.09144653,63060.0,63059.0,0.0777]
[1721032508562,0.09144653,63060.0,63059.0,0.1705]
[1721032509457,0.09144653,63060.0,63059.0,0.1715]
[1721032510723,0.03407202,63060.0,63059.0,0.1715]
[1721032510909,0.03407202,63060.0,63059.0,0.1705]
[1721032511049,0.004,63060.0,63059.0,0.1705]
[1721032511412,0.06132014,63060.0,63059.0,0.1705]
[1721032511590,0.09539216,63060.0,63059.0,0.18093077]
[1721032512171,0.10039216,63060.0,63059.0,0.18193077]
[1721032512923,0.03407202,63060.0,63059.0,0.18093077]
[1721032513284,0.001,63060.0,63059.0,0.18793077]
[1721032513681,0.09231879,63060.0,63059.0,0.18793077]
[1721032513890,0.001,63060.0,63059.0,0.18793077]
[1721032514311,0.03506801,63060.0,63059.0,0.11023077]
[1721032514949,0.09248009,63060.0,63059.0,0.11023077]
[1721032517398,0.09239912,63060.0,63059.0,0.11023077]
[1721032517901,0.09224748,63060.0,63059.0,0.11023077]
[1721032518540,0.09224748,63060.0,63059.0,0.01743077]
[1721032519674,0.64041048,63060.0,63059.0,0.01743077]
[1721032519880,0.66611048,63060.0,63059.0,0.01743077]
[1721032520083,0.38066848,63060.0,63059.0,0.007]
[1721032520510,0.49998348,63060.0,63059.0,0.007]
[1721032520714,0.45847889,63060.0,63054.0,0.009174]
[1721032520913,0.09362601,63059.0,63054.0,0.009174]
[1721032521190,0.09056248,63058.0,63055.0,0.10372014]
[1721032521387,0.09362601,63057.0,63055.0,0.10372014]
[1721032521584,0.09056248,63056.0,63055.0,0.10372014]
[1721032523342,0.09056248,63056.0,63055.0,0.10772014]
[1721032523549,0.05658828,63056.0,63055.0,0.11072014]
[1721032523720,0.09006724,63056.0,63055.0,0.11072014]
[1721032523922,0.09006724,63056.0,63055.0,0.10772014]
[1721032524239,0.09006724,63056.0,63055.0,0.01792014]
[1721032524240,0.09106724,63056.0,63055.0,0.01792014]
[1721032524644,0.09087639,63056.0,63055.0,0.01792014]
[1721032527072,0.05738607,63056.0,63055.0,0.01792014]
[1721032530168,0.05738607,63056.0,63055.0,0.11072014]
[1721032530371,0.05746695,63056.0,63055.0,0.11072014]
[1721032530904,0.05741815,63056.0,63055.0,0.11072014]
[1721032531676,0.05741815,63056.0,63055.0,0.17482014]
[1721032532932,0.001,63056.0,63055.0,0.49482014]
[1721032533305,0.001,63056.0,63055.0,0.37482014]
[1721032533862,0.001,63056.0,63055.0,0.49482014]
[1721032534068,0.001,63056.0,63055.0,0.37482014]
[1721032534770,0.03488198,63056.0,63055.0,0.37482014]
[1721032535305,0.03488198,63056.0,63055.0,0.47482014]
[1721032536856,0.03486981,63056.0,63055.0,0.47482014]
[1721032537435,0.001,63056.0,63055.0,0.47482014]
[1721032541331,0.001,63056.0,63055.0,0.41072014]
[1721032546685,0.001,63056.0,63055.0,0.55492014]
[1721032548420,0.001,63056.0,63055.0,0.67492014]
[1721032548851,0.001,63056.0,63055.0,0.72232729]
[1721032549016,0.001,63056.0,63055.0,0.67492014]
[1721032549218,0.001,63056.0,63055.0,0.72232729]
[1721032549857,0.001,63056.0,63055.0,1.15052429]
[1721032550069,0.001,63056.0,63055.0,1.45468429]
[1721032550298,0.001,63056.0,63055.0,1.17420745]
[1721032550448,0.001,63056.0,63055.0,1.10311714]
[1721032552265,0.001,63056.0,63055.0,1.15050276]
[1721032552730,0.001,63056.0,63055.0,1.15050076]
[1721032553277,0.001,63056.0,63055.0,1.10311714]
[1721032553945,0.001,63056.0,63055.0,1.15049626]
[1721032554701,0.001,63056.0,63055.0,1.10311714]
[1721032555425,0.001,63056.0,63055.0,1.43596126]
[1721032556218,0.001,63056.0,63055.0,1.38858214]
[1721032556630,0.001,63056.0,63055.0,1.43595957]
[1721032557487,0.001,63056.0,63055.0,1.38858214]
[1721032557719,0.001,63056.0,63055.0,2.18354248]
[1721032557896,0.00083,63065.0,63064.0,0.739412]
[1721032558099,0.00083,63065.0,63064.0,6.92047096]
[1721032558314,0.00083,63065.0,63064.0,7.46099843]
[1721032558518,0.00083,63065.0,63064.0,7.08749843]
[1721032559194,0.00083,63065.0,63064.0,7.00576302]
[1721032559395,0.00083,63065.0,63064.0,7.20576302]
[1721032559630,0.00083,63065.0,63064.0,6.5359286]
[1721032559801,0.00083,63065.0,63064.0,6.98502503]
[1721032559802,0.00183,63065.0,63064.0,6.98502503]
[1721032560001,0.00183,63065.0,63064.0,7.18502503]
[1721032560204,0.00183,63065.0,63064.0,7.31578449]
[1721032560628,0.00183,63065.0,63064.0,7.1975163]
[1721032560826,0.00183,63065.0,63064.0,7.7025163]
[1721032561276,0.04934292,63080.0,63076.0,0.748055]
[1721032561432,0.04934292,63080.0,63076.0,1.078555]
[1721032561666,0.149,63085.0,63076.0,1.078555]
[1721032562024,0.0832,63085.0,63076.0,0.985755]
[1721032562246,0.0832,63085.0,63076.0,1.078555]
[1721032562579,0.0832,63085.0,63076.0,1.081555]
[1721032563413,0.0832,63085.0,63076.0,1.083555]
[1721032563835,0.0832,63085.0,63076.0,1.368925]
[1721032564980,0.0635,63087.0,63076.0,1.53104291]
[1721032565756,0.04976988,63089.0,63088.0,0.407257]
[1721032566166,0.0815,63095.0,63089.0,0.142654]
[1721032566315,0.0815,63095.0,63089.0,0.14582377]
[1721032566531,0.0815,63095.0,63094.0,0.0928]
[1721032566683,0.1447,63100.0,63094.0,0.0928]
[1721032566885,0.03376562,63099.0,63096.0,0.2]
[1721032567091,0.1447,63100.0,63098.0,0.0928]
[1721032568789,0.1587,63100.0,63098.0,0.0938]
[1721032569407,0.1587,63100.0,63099.0,0.00657476]
[1721032569609,0.1687,63100.0,63099.0,0.00657476]
[1721032569813,0.1687,63100.0,63099.0,0.0928]
[1721032570129,0.1687,63100.0,63099.0,0.09937476]
[1721032570283,0.1587,63100.0,63099.0,0.09937476]
[1721032570629,0.1687,63100.0,63099.0,0.10037476]
[1721032571014,0.1547,63100.0,63099.0,0.10037476]
[1721032571410,0.1687,63100.0,63099.0,0.10137476]
[1721032571886,0.1547,63100.0,63099.0,0.10037476]
[1721032572089,0.1547,63100.0,63099.0,0.10137476]
[1721032572414,0.1657,63100.0,63099.0,0.10137476]
[1721032572824,0.1557,63100.0,63099.0,0.10037476]
[1721032572994,0.1667,63100.0,63099.0,0.10137476]
[1721032573405,0.022,63100.0,63099.0,0.10137476]
[1721032574639,0.022,63100.0,63099.0,0.22137476]
[1721032574940,0.022,63100.0,63099.0,0.36717714]
[1721032575108,0.022,63100.0,63099.0,0.22137476]
[1721032577168,0.022,63100.0,63099.0,0.36400776]
[1721032577367,0.022,63100.0,63099.0,0.64927376]
[1721032577595,0.022,63100.0,63099.0,1.24235767]
[1721032577793,0.022,63100.0,63099.0,1.34235767]
[1721032578623,0.00083,63108.0,63107.0,0.747843]
[1721032578798,0.00083,63108.0,63107.0,1.081943]
[1721032579005,0.00083,63108.0,63107.0,1.0884881]
[1721032579959,0.00083,63108.0,63107.0,0.9956881]
[1721032580166,0.00083,63108.0,63107.0,1.0884881]
[1721032580728,0.00083,63108.0,63107.0,1.0934881]
[1721032581772,0.00083,63108.0,63107.0,1.25560601]
[1721032582089,0.00083,63108.0,63107.0,1.26060601]
[1721032583035,0.00083,63108.0,63107.0,0.88257701]
[1721032583242,0.00083,63108.0,63107.0,0.97537701]
[1721032583450,0.00083,63108.0,63107.0,1.26060601]
[1721032583698,0.00083,63108.0,63107.0,1.54583501]
[1721032584206,0.00083,63108.0,63107.0,1.26060601]
[1721032588215,0.05818949,63120.0,63119.0,0.342587]
[1721032588415,0.05818949,63120.0,63119.0,0.435387]
[1721032588646,0.00834,63120.0,63119.0,0.29931243]
[1721032590573,0.15144,63120.0,63119.0,0.29931243]
[1721032591234,0.15744,63120.0,63119.0,0.30031243]
[1721032591431,0.15744,63120.0,63119.0,0.2938]
[1721032591630,0.15744,63120.0,63119.0,0.30031089]
[1721032610856,0.01434,63120.0,63119.0,0.30031089]
[1721032611056,0.01434,63120.0,63119.0,0.37911089]
[1721032611854,0.01434,63120.0,63119.0,0.30031089]
[1721032612364,0.04775227,63120.0,63119.0,0.30031089]
[1721032613005,0.04778887,63120.0,63119.0,0.30031089]
[1721032613748,0.12278887,63120.0,63119.0,0.30031089]
[1721032614234,0.12276722,63120.0,63119.0,0.30031089]
[1721032616741,0.17538793,63120.0,63119.0,0.30031089]
[1721032617502,0.12273972,63120.0,63119.0,0.30031089]
[1721032617705,0.17549129,63120.0,63119.0,0.30031089]
[1721032618103,0.10049129,63120.0,63119.0,0.30031089]
[1721032618525,0.04773972,63120.0,63119.0,0.30031089]
[1721032618737,0.10031777,63120.0,63119.0,0.30031089]
[1721032618938,0.04773972,63120.0,63119.0,0.30031089]
[1721032619140,0.04773972,63120.0,63119.0,0.44181089]
[1721032619474,0.10031695,63120.0,63119.0,0.44181089]
[1721032619883,0.10031695,63120.0,63119.0,0.30031089]
[1721032620709,0.10033995,63120.0,63119.0,0.30031089]
[1721032621350,0.10109619,63120.0,63119.0,0.30031089]
[1721032623303,0.06682167,63120.0,63119.0,0.30031089]
[1721032623529,0.10028962,63120.0,63119.0,0.56207943]
[1721032623820,0.01358684,63120.0,63119.0,0.65891089]
[1721032623993,0.01358684,63120.0,63119.0,0.73001871]
[1721032624415,0.01358684,63120.0,63119.0,1.08124068]
[1721032624574,0.01358684,63120.0,63119.0,1.31383777]
[1721032624575,0.00758684,63120.0,63119.0,1.31383777]
[1721032624771,0.00758684,63120.0,63119.0,1.91752581]
[1721032625015,0.00758684,63120.0,63119.0,1.60001277]
[1721032625999,0.00758684,63120.0,63119.0,1.50721277]
[1721032626200,0.00758684,63120.0,63119.0,1.60001277]
[1721032626529,0.00758684,63120.0,63119.0,2.37034888]
[1721032626733,0.00758684,63120.0,63119.0,2.60186753]
[1721032627151,0.00758684,63120.0,63119.0,2.60086753]
[1721032627314,0.00758684,63120.0,63119.0,2.30806753]
[1721032627498,0.00758684,63120.0,63119.0,2.40586753]
[1721032627925,0.00758684,63120.0,63119.0,2.41086753]
[1721032628122,0.00758684,63120.0,63119.0,2.27934888]
[1721032628545,0.00758684,63120.0,63119.0,2.39774524]
[1721032629169,0.00758684,63120.0,63119.0,2.27934888]
[1721032631121,0.00758684,63120.0,63119.0,2.27401216]
[1721032631331,0.00758684,63120.0,63119.0,2.37401216]
[1721032633022,0.00758684,63120.0,63119.0,2.37398105]
[1721032633644,0.00758684,63120.0,63119.0,2.57397881]
[1721032634228,0.00758684,63120.0,63119.0,2.47932638]
[1721032634634,0.00758684,63120.0,63119.0,2.27932638]
[1721032634836,0.00758684,63120.0,63119.0,2.18652638]
[1721032635066,0.00758684,63120.0,63119.0,2.27932638]
[1721032636053,0.00758684,63120.0,63119.0,2.27932625]
[1721032636232,0.00758684,63120.0,63119.0,1.9281408]
[1721032636460,0.00758684,63120.0,63119.0,2.27932625]
[1721032636956,0.00758684,63120.0,63119.0,1.99415125]
[1721032637226,0.00758684,63120.0,63119.0,2.06511677]
[1721032637362,0.00758684,63120.0,63119.0,1.39476677]
[1721032637563,0.00758684,63120.0,63119.0,0.6598288]
[1721032637807,0.00758684,63120.0,63119.0,0.8952158]
[1721032638019,0.00758684,63120.0,63119.0,0.40931089]
[1721032638165,0.00758684,63120.0,63119.0,0.30931089]
[1721032639371,0.00758684,63120.0,63119.0,0.40931089]
[1721032642171,0.06988684,63120.0,63119.0,0.40931089]
[1721032643103,0.14768684,63120.0,63119.0,0.40931089]
[1721032643642,0.08538684,63120.0,63119.0,0.40931089]
[1721032643857,0.00758684,63120.0,63119.0,0.40931089]
[1721032645203,0.00758684,63120.0,63119.0,0.31651089]
[1721032645393,0.00758684,63120.0,63119.0,0.01651089]
[1721032645394,0.69614284,63120.0,63119.0,0.01651089]
[1721032645588,0.78457194,63120.0,63119.0,0.01651089]
[1721032645792,1.06060696,63120.0,63119.0,0.01]
[1721032645991,1.20305934,63120.0,63119.0,0.01]
[1721032646194,0.832937,63119.0,63118.0,0.00019072]
[1721032646424,1.14462067,63119.0,63118.0,0.00019072]